fUSD/lending_fUSD_20241110
["ID","MTS","AMOUNT","RATE_DAILY","PERIOD"]
[341828057,1731243068967,-500.0,0.00013698,2]
[341828058,1731243068976,-500.0,0.00013698,2]
[341828059,1731243068986,-702.96,0.00013698,2]
[341828060,1731243068995,-1952.52,0.00013698,2]
[341828061,1731243069005,-510.8,0.00013698,2]
[341828062,1731243069014,-684.79,0.00013698,2]
[341828063,1731243069023,-500.0,0.00013698,2]
[341828064,1731243069033,-500.0,0.00013698,2]
[341828065,1731243069042,-702.96,0.00013698,2]
[341828066,1731243069051,-1952.52,0.00013698,2]
[341828067,1731243069061,-510.8,0.00013698,2]
[341828068,1731243069072,-684.79,0.00013698,2]
[341828069,1731243069082,-500.0,0.00013698,2]
[341828070,1731243069091,-500.0,0.00013698,2]
[341828071,1731243069100,-1952.52,0.00013698,2]
[341828072,1731243069109,-702.96,0.00013698,2]
[341828073,1731243069119,-510.8,0.00013698,2]
[341828074,1731243069128,-684.79,0.00013698,2]
[341828075,1731243069137,-500.0,0.00013698,2]
[341828076,1731243069146,-500.0,0.00013698,2]
[341828077,1731243069156,-510.8,0.00013698,2]
[341828078,1731243069165,-702.96,0.00013698,2]
[341828079,1731243069174,-1952.52,0.00013698,2]
[341828080,1731243069183,-684.79,0.00013698,2]
[341828081,1731243069193,-500.0,0.00013698,2]
[341828082,1731243069202,-500.0,0.00013698,2]
[341828083,1731243069211,-510.90882849,0.00013698,2]
[341828084,1731243069221,-1952.52,0.00013698,2]
[341828085,1731243069230,-702.96,0.00013698,2]
[341828086,1731243069239,-684.79,0.00013698,2]
[341828087,1731243069248,-500.0,0.00013698,2]
[341828088,1731243069257,-500.0,0.00013698,2]
[341828089,1731243069266,-1952.52,0.00013698,2]
[341828090,1731243069275,-702.96,0.00013698,2]
[341828091,1731243069284,-684.79,0.00013698,2]
[341828092,1731243069293,-500.0,0.00013698,2]
[341828093,1731243069303,-500.0,0.00013698,2]
[341828094,1731243069312,-500.0,0.00013698,2]
[341828095,1731243069325,-1952.52,0.00013698,2]
[341828096,1731243069335,-702.96,0.00013698,2]
[341828097,1731243069344,-684.79,0.00013698,2]
[341828098,1731243069353,-500.0,0.00013698,2]
[341828099,1731243069362,-500.0,0.00013698,2]
[341828100,1731243069371,-500.0,0.00013698,2]
[341828101,1731243069380,-1722.31353066,0.00013698,2]
[341828102,1731243071729,-230.20646934,0.00013698,2]
[341828103,1731243071739,-702.96,0.00013698,2]
[341828104,1731243071748,-500.0,0.00013698,2]
[341828105,1731243071757,-684.79,0.00013698,2]
[341828106,1731243071767,-500.0,0.00013698,2]
[341828107,1731243071776,-500.0,0.00013698,2]
[341828108,1731243071787,-500.0,0.00013698,2]
[341828109,1731243071797,-500.0,0.00013698,2]
[341828110,1731243071807,-537.80749063,0.00013698,2]
[341828111,1731243071818,-702.96,0.00013698,2]
[341828112,1731243071829,-684.79,0.00013698,2]
[341828113,1731243071839,-500.0,0.00013698,2]
[341828114,1731243071849,-500.0,0.00013698,2]
[341828115,1731243071859,-500.0,0.00013698,2]
[341828116,1731243071868,-350.78408478,0.00013698,2]
[341828117,1731243071893,-149.21591522,0.00013698,2]
[341828118,1731243071903,-702.96,0.00013698,2]
[341828119,1731243071912,-500.0,0.00013698,2]
[341828120,1731243071922,-253.15863478,0.00013698,2]
[341828121,1731243072047,-431.63136522,0.00013698,2]
[341828122,1731243072057,-500.0,0.00013698,2]
[341828123,1731243072068,-500.0,0.00013698,2]
[341828124,1731243072077,-500.0,0.00013698,2]
[341828125,1731243072087,-1952.52,0.00013698,2]
[341828126,1731243072096,-221.60860069,0.00013698,2]
[341828127,1731243077434,1703.94758485,0.000209,30]
[341828129,1731243261295,500.0,0.00027,60]
[341828131,1731243408617,-2334.55,0.000139,5]
[341828133,1731243536009,938.67,0.00010517,2]
[341828138,1731243731404,152.0,0.0002194,29]
[341828139,1731243731755,152.0,0.00021737,28]
[341828140,1731243732104,152.0,0.00021534,27]
[341828141,1731243732447,152.0,0.0002133,26]
[341828142,1731243733082,152.0,0.00020924,24]
[341828143,1731243733360,152.0,0.00020721,23]
[341828144,1731243733669,152.0,0.00020517,22]
[341828145,1731243734467,152.0,0.00020314,21]
[341828149,1731243843404,315.75732065,0.00012195,2]
[341828151,1731243948138,-653.9,0.00012203,2]
[341828152,1731243948160,-134.07740611,0.00012231,2]
[341828153,1731244027351,-165.92259389,0.00012231,2]
[341828154,1731244027374,-165.67,0.00012232,2]
[341828155,1731244027396,-1106.71,0.00012249,2]
[341828156,1731244027418,-397.77,0.0001225,2]
[341828157,1731244027439,-250.0,0.00012258,2]
[341828158,1731244027460,-150.0,0.00012266,2]
[341828159,1731244027482,-1957.9208,0.00012266,2]
[341828160,1731244027503,-4183.9723695,0.00012266,2]
[341828161,1731244090824,785.36070552,0.00012168,2]
[341828163,1731244115534,-514.63929448,0.00012267,2]
[341828164,1731244148134,-2236.36070552,0.00012267,2]
[341828165,1731244148154,-2074.0447499,0.00012268,2]
[341828166,1731244151120,-516.5852501,0.00012268,2]
[341828167,1731244151141,-200.0,0.00012295,2]
[341828168,1731244151162,-1000.0,0.00012306,2]
[341828169,1731244151182,-45816.0276305,0.00012321,2]
[341828170,1731244151206,-1944.05,0.00012321,2]
[341828171,1731244155347,1054.19088907,0.00027,60]
[341828172,1731244156672,4439.91373449,0.00012195,2]
[341828173,1731244156693,26984.45536551,0.00012195,2]
[341828174,1731244160108,-980.0,0.00012331,2]
[341828175,1731244162101,-1874.96,0.00012331,2]
[341828176,1731244162124,-250.0,0.0001234,2]
[341828177,1731244162145,-150.0,0.00012354,2]
[341828178,1731244162166,-2537.77,0.00012403,2]
[341828179,1731244162186,-150.99,0.00012403,2]
[341828180,1731244162208,-23900.0,0.00012466,2]
[341828181,1731244162228,-226.61,0.0001247,2]
[341828182,1731244162248,-524.75,0.0001247,2]
[341828183,1731244162268,-163.52,0.0001247,2]
[341828184,1731244162289,-263.4342,0.00012763,2]
[341828185,1731244162309,-1694.7752,0.00012763,2]
[341828186,1731244162330,-938.67,0.00012781,2]
[341828187,1731244162351,-150.0,0.00012792,2]
[341828188,1731244162371,-163.57,0.00012793,2]
[341828189,1731244162391,-2303.77701591,0.00012793,2]
[341828208,1731244231877,-9960.0557594,0.00012622,2]
[341828229,1731244232225,-3061.3802003,0.00012622,2]
[341828240,1731244232332,-10878.5640403,0.00012622,2]
[341828242,1731244232341,-785.36070552,0.00012693,2]
[341828244,1731244232351,-397.77,0.00012863,2]
[341828246,1731244232360,-2482.54,0.000129,2]
[341828248,1731244232369,-432.32,0.00012941,2]
[341828250,1731244232378,-762.58,0.00012941,2]
[341828252,1731244232387,-150.0,0.00012978,2]
[341828254,1731244232396,-15000.0,0.00013,2]
[341828256,1731244232406,-3000.0,0.00013,2]
[341828258,1731244232415,-278.06,0.00013,2]
[341828260,1731244232424,-219.98,0.00013,2]
[341828262,1731244232433,-150.0,0.00013078,2]
[341828264,1731244232442,-300.0,0.00013078,2]
[341828265,1731244232451,-150.0,0.00013078,2]
[341828266,1731244232460,-362.16,0.00013078,2]
[341828267,1731244232469,-187.09,0.00013078,2]
[341828268,1731244232479,-151.94517687,0.00013095,2]
[341828269,1731244232488,-413.48638028,0.00013095,2]
[341828271,1731244232498,-3335.17,0.00013095,2]
[341828273,1731244232507,-762.58,0.00013096,2]
[341828274,1731244232518,-457.05,0.00013096,2]
[341828275,1731244232527,-432.32,0.00013096,2]
[341828276,1731244232536,-762.58,0.00013096,2]
[341828277,1731244232545,-762.58,0.00013096,2]
[341828278,1731244232555,-432.32,0.00013096,2]
[341828279,1731244232565,-762.58,0.00013096,2]
[341828280,1731244232574,-432.32,0.00013096,2]
[341828281,1731244232583,-432.32,0.00013096,2]
[341828282,1731244232592,-762.58,0.00013096,2]
[341828283,1731244232601,-432.32,0.00013096,2]
[341828284,1731244232610,-762.58,0.00013096,2]
[341828285,1731244232620,-762.58,0.00013096,2]
[341828286,1731244232629,-432.32,0.00013096,2]
[341828287,1731244232638,-762.58,0.00013096,2]
[341828288,1731244232647,-432.32,0.00013096,2]
[341828289,1731244232657,-762.58,0.00013096,2]
[341828290,1731244232666,-432.32,0.00013096,2]
[341828291,1731244232675,-432.32,0.00013096,2]
[341828292,1731244232685,-762.58,0.00013096,2]
[341828293,1731244232694,-432.32,0.00013096,2]
[341828294,1731244232703,-762.58,0.00013096,2]
[341828295,1731244232713,-762.58,0.00013096,2]
[341828296,1731244232722,-432.32,0.00013096,2]
[341828297,1731244232731,-555.35,0.00013096,2]
[341828298,1731244232740,-432.32,0.00013096,2]
[341828299,1731244232749,-255.88628409,0.00013342,2]
[341828300,1731244232759,-362.16,0.0001337,2]
[341828301,1731244232773,-150.0,0.0001337,2]
[341828302,1731244232782,-150.0,0.0001337,2]
[341828303,1731244232791,-150.0,0.0001337,2]
[341828304,1731244232800,-150.0,0.0001337,2]
[341828305,1731244232810,-150.77,0.0001337,2]
[341828306,1731244232819,-150.0,0.0001337,2]
[341828307,1731244232828,-432.99,0.0001337,2]
[341828308,1731244232837,-150.0,0.0001337,2]
[341828309,1731244232849,-150.0,0.0001337,2]
[341828310,1731244232859,-432.99,0.0001337,2]
[341828311,1731244232869,-150.0,0.0001337,2]
[341828312,1731244232878,-362.16,0.0001337,2]
[341828313,1731244232887,-150.0,0.0001337,2]
[341828314,1731244232897,-432.99,0.0001337,2]
[341828315,1731244232906,-150.0,0.0001337,2]
[341828316,1731244232915,-150.0,0.0001337,2]
[341828317,1731244232924,-362.16,0.0001337,2]
[341828318,1731244232933,-150.0,0.0001337,2]
[341828319,1731244232942,-150.0,0.0001337,2]
[341828320,1731244232951,-150.0,0.0001337,2]
[341828321,1731244232962,-362.16,0.0001337,2]
[341828322,1731244232971,-432.99,0.0001337,2]
[341828323,1731244232980,-150.0,0.0001337,2]
[341828324,1731244232989,-150.0,0.0001337,2]
[341828325,1731244232999,-150.0,0.0001337,2]
[341828326,1731244233008,-432.99,0.0001337,2]
[341828327,1731244233019,-362.16,0.0001337,2]
[341828328,1731244233029,-150.0,0.0001337,2]
[341828329,1731244233038,-150.0,0.0001337,2]
[341828330,1731244233048,-150.0,0.0001337,2]
[341828331,1731244233058,-150.0,0.0001337,2]
[341828332,1731244233068,-150.0,0.0001337,2]
[341828333,1731244233078,-150.0,0.0001337,2]
[341828334,1731244233087,-432.99,0.0001337,2]
[341828335,1731244233097,-362.16,0.0001337,2]
[341828336,1731244233107,-150.0,0.0001337,2]
[341828337,1731244233116,-150.0,0.0001337,2]
[341828338,1731244233126,-432.99,0.0001337,2]
[341828339,1731244233136,-150.0,0.0001337,2]
[341828340,1731244233147,-150.0,0.0001337,2]
[341828341,1731244233158,-362.16,0.0001337,2]
[341828342,1731244233168,-150.0,0.0001337,2]
[341828343,1731244233178,-150.0,0.0001337,2]
[341828344,1731244233189,-150.0,0.0001337,2]
[341828345,1731244233199,-150.0,0.0001337,2]
[341828346,1731244233210,-362.16,0.0001337,2]
[341828347,1731244233221,-432.99,0.0001337,2]
[341828348,1731244233231,-432.99,0.0001337,2]
[341828349,1731244233241,-362.16,0.0001337,2]
[341828350,1731244233251,-150.0,0.0001337,2]
[341828351,1731244233263,-150.0,0.0001337,2]
[341828352,1731244233273,-362.16,0.0001337,2]
[341828353,1731244233284,-150.0,0.0001337,2]
[341828354,1731244233295,-150.0,0.0001337,2]
[341828355,1731244233305,-930.1,0.0001337,2]
[341828356,1731244233315,-150.0,0.0001337,2]
[341828357,1731244233325,-432.99,0.0001337,2]
[341828358,1731244233335,-362.16,0.0001337,2]
[341828359,1731244233345,-432.99,0.0001337,2]
[341828360,1731244233356,-362.16,0.0001337,2]
[341828361,1731244233366,-150.0,0.0001337,2]
[341828362,1731244233376,-150.0,0.0001337,2]
[341828363,1731244233386,-280.83,0.0001337,2]
[341828364,1731244233396,-432.99,0.0001337,2]
[341828365,1731244233406,-432.99,0.0001337,2]
[341828366,1731244233416,-150.0,0.0001337,2]
[341828367,1731244233426,-432.99,0.0001337,2]
[341828368,1731244233435,-80155.32699663,0.00013398,2]
[341828369,1731244233472,-6366.66322747,0.00013398,2]
[341828370,1731244233484,-11341.39928974,0.00013398,2]
[341828371,1731244233496,-100659.6810011,0.00013398,2]
[341828377,1731244237931,-255.88628408,0.00013379,2]
[341828378,1731244237942,-1163.58463667,0.00013398,2]
[341828379,1731244238189,-1628.12830969,0.00013398,2]
[341828380,1731244238201,-7773.00407032,0.00013398,2]
[341828381,1731244238213,-2004.03510894,0.00013398,2]
[341828382,1731244238224,-1985.43334837,0.00013398,2]
[341828384,1731244238305,-86922.74401107,0.00013398,2]
[341828386,1731244238316,-397.77,0.00013476,2]
[341828388,1731244238326,-3640.1783,0.00013498,2]
[341828389,1731244238335,-432.99,0.000135,2]
[341828391,1731244238345,-432.99,0.000135,2]
[341828393,1731244238354,-1736.00105111,0.00013566,2]
[341828395,1731244238364,-1736.00105111,0.00013578,2]
[341828396,1731244238373,-1736.00105111,0.00013581,2]
[341828397,1731244238383,-1736.00105111,0.00013581,2]
[341828398,1731244238392,-1736.00105111,0.00013583,2]
[341828399,1731244238402,-7949.32754,0.00013588,2]
[341828400,1731244238411,-1736.00105111,0.00013589,2]
[341828402,1731244238421,-5000.0,0.0001359,2]
[341828404,1731244238430,-2500.0,0.0001359,2]
[341828406,1731244238439,-1105.03274014,0.00013597,2]
[341828408,1731244238449,-1105.03274006,0.00013597,2]
[341828410,1731244238458,-1105.03274006,0.00013597,2]
[341828412,1731244238468,-1105.03274006,0.00013597,2]
[341828414,1731244238477,-1105.03274006,0.00013597,2]
[341828416,1731244238486,-1105.03274006,0.00013598,2]
[341828418,1731244238495,-1105.03274006,0.00013598,2]
[341828420,1731244238505,-1105.03274006,0.00013598,2]
[341828422,1731244238515,-1345.8109,0.00013598,2]
[341828425,1731244238524,-1000.0,0.00013598,2]
[341828428,1731244238534,-1135.3326,0.00013598,2]
[341828431,1731244238543,-500.0,0.00013598,2]
[341828433,1731244238551,-5302.5732,0.00013598,2]
[341828435,1731244238560,-1105.03274006,0.00013598,2]
[341828437,1731244238569,-182.38239809,0.00013598,2]
[341828439,1731244238579,-204.22136322,0.00013598,2]
[341828441,1731244238588,-166.93930733,0.00013598,2]
[341828443,1731244238597,-1122.771,0.00013598,2]
[341828445,1731244238606,-170.73,0.00013598,2]
[341828447,1731244238615,-1105.03274006,0.00013598,2]
[341828448,1731244238623,-232.5284,0.00013598,2]
[341828450,1731244238632,-500.0,0.00013673,2]
[341828453,1731244238642,-500.0,0.00013673,2]
[341828455,1731244238650,-821.28016516,0.00013697,2]
[341828457,1731244238659,-99052.73919859,0.00013697,2]
[341828458,1731244238669,-426.22825879,0.00013697,2]
[341828460,1731244238678,-29723.50045849,0.00013697,2]
[341828462,1731244238687,-105022.53474824,0.00013697,2]
[341828464,1731244238696,-1094575.34638341,0.00013698,2]
[341828466,1731244238706,-13982.99523234,0.00013698,2]
[341828468,1731244238715,-340.0711405,0.00013698,2]
[341828470,1731244238724,-500.0,0.00013698,2]
[341828472,1731244238733,-500.0,0.00013698,2]
[341828474,1731244238742,-500.0,0.00013698,2]
[341828476,1731244238751,-533.48003596,0.00013698,2]
[341828478,1731244238760,-500.0,0.00013698,2]
[341828480,1731244238775,-500.0,0.00013698,2]
[341828482,1731244238784,-311.12890011,0.00013698,2]
[341828484,1731244238793,-500.0,0.00013698,2]
[341828486,1731244238802,-500.0,0.00013698,2]
[341828488,1731244238811,-500.0,0.00013698,2]
[341828490,1731244238820,-500.0,0.00013698,2]
[341828492,1731244238829,-500.0,0.00013698,2]
[341828494,1731244238838,-500.0,0.00013698,2]
[341828496,1731244238848,-500.0,0.00013698,2]
[341828498,1731244238857,-281.69585736,0.00013698,2]
[341828499,1731244238866,-500.0,0.00013698,2]
[341828500,1731244238875,-500.0,0.00013698,2]
[341828501,1731244238883,-500.0,0.00013698,2]
[341828502,1731244238892,-500.0,0.00013698,2]
[341828503,1731244238901,-500.0,0.00013698,2]
[341828504,1731244238910,-239.38567341,0.00013698,2]
[341828505,1731244238919,-500.0,0.00013698,2]
[341828506,1731244238928,-500.0,0.00013698,2]
[341828507,1731244238937,-440.0779717,0.00013698,2]
[341828508,1731244238946,-500.0,0.00013698,2]
[341828509,1731244238954,-500.0,0.00013698,2]
[341828510,1731244238963,-500.0,0.00013698,2]
[341828511,1731244238972,-500.0,0.00013698,2]
[341828512,1731244238981,-500.0,0.00013698,2]
[341828513,1731244238990,-500.0,0.00013698,2]
[341828515,1731244238999,-500.0,0.00013698,2]
[341828517,1731244239010,-500.0,0.00013698,2]
[341828519,1731244239020,-500.0,0.00013698,2]
[341828521,1731244239030,-500.0,0.00013698,2]
[341828523,1731244239039,-500.0,0.00013698,2]
[341828525,1731244239048,-500.0,0.00013698,2]
[341828527,1731244239058,-500.0,0.00013698,2]
[341828529,1731244239068,-500.0,0.00013698,2]
[341828531,1731244239077,-500.0,0.00013698,2]
[341828533,1731244239086,-500.0,0.00013698,2]
[341828535,1731244239095,-500.0,0.00013698,2]
[341828537,1731244239104,-500.0,0.00013698,2]
[341828539,1731244239114,-500.0,0.00013698,2]
[341828541,1731244239123,-500.0,0.00013698,2]
[341828543,1731244239133,-392.90466042,0.00013698,2]
[341828545,1731244239142,-718.36,0.00013698,2]
[341828547,1731244239151,-718.36,0.00013698,2]
[341828549,1731244239160,-718.36,0.00013698,2]
[341828551,1731244239170,-718.36,0.00013698,2]
[341828553,1731244239179,-718.36,0.00013698,2]
[341828555,1731244239188,-718.36,0.00013698,2]
[341828557,1731244239197,-718.36,0.00013698,2]
[341828559,1731244239206,-718.36,0.00013698,2]
[341828561,1731244239216,-718.36,0.00013698,2]
[341828563,1731244239225,-718.36,0.00013698,2]
[341828565,1731244239235,-718.36,0.00013698,2]
[341828567,1731244239244,-718.36,0.00013698,2]
[341828569,1731244239253,-718.36,0.00013698,2]
[341828571,1731244239262,-718.36,0.00013698,2]
[341828573,1731244239272,-718.36,0.00013698,2]
[341828575,1731244239281,-718.36,0.00013698,2]
[341828577,1731244239290,-718.36,0.00013698,2]
[341828579,1731244239298,-718.36,0.00013698,2]
[341828581,1731244239307,-718.36,0.00013698,2]
[341828583,1731244239317,-718.36,0.00013698,2]
[341828585,1731244239326,-718.36,0.00013698,2]
[341828587,1731244239335,-718.36,0.00013698,2]
[341828589,1731244239344,-718.36,0.00013698,2]
[341828591,1731244239353,-718.53768982,0.00013698,2]
[341828593,1731244239362,-500.0,0.00013698,2]
[341828595,1731244239371,-500.0,0.00013698,2]
[341828597,1731244239380,-500.0,0.00013698,2]
[341828599,1731244239390,-500.0,0.00013698,2]
[341828601,1731244239399,-500.0,0.00013698,2]
[341828603,1731244239408,-500.0,0.00013698,2]
[341828605,1731244239417,-500.0,0.00013698,2]
[341828607,1731244239426,-500.0,0.00013698,2]
[341828609,1731244239435,-500.0,0.00013698,2]
[341828611,1731244239444,-540.44684535,0.00013698,2]
[341828613,1731244239453,-500.0,0.00013698,2]
[341828615,1731244239463,-546.36691124,0.00013698,2]
[341828617,1731244239472,-314.9782616,0.00013698,2]
[341828619,1731244239481,-500.0,0.00013698,2]
[341828621,1731244239490,-500.0,0.00013698,2]
[341828623,1731244239499,-500.0,0.00013698,2]
[341828625,1731244239508,-500.0,0.00013698,2]
[341828627,1731244239519,-500.0,0.00013698,2]
[341828629,1731244239528,-500.0,0.00013698,2]
[341828631,1731244239537,-500.0,0.00013698,2]
[341828633,1731244239547,-500.0,0.00013698,2]
[341828635,1731244239556,-585.02520109,0.00013698,2]
[341828637,1731244239565,-503.89674369,0.00013698,2]
[341828639,1731244239575,-500.0,0.00013698,2]
[341828641,1731244239584,-500.0,0.00013698,2]
[341828643,1731244239593,-500.0,0.00013698,2]
[341828645,1731244239603,-500.0,0.00013698,2]
[341828647,1731244239612,-500.0,0.00013698,2]
[341828649,1731244239621,-500.0,0.00013698,2]
[341828651,1731244239631,-500.0,0.00013698,2]
[341828653,1731244239640,-500.0,0.00013698,2]
[341828656,1731244239649,-500.0,0.00013698,2]
[341828657,1731244239658,-500.0,0.00013698,2]
[341828659,1731244239667,-500.0,0.00013698,2]
[341828661,1731244239676,-500.0,0.00013698,2]
[341828663,1731244239686,-484.96108176,0.00013698,2]
[341828665,1731244239695,-500.0,0.00013698,2]
[341828667,1731244239704,-500.0,0.00013698,2]
[341828668,1731244239713,-500.0,0.00013698,2]
[341828670,1731244239723,-500.0,0.00013698,2]
[341828671,1731244239732,-500.0,0.00013698,2]
[341828672,1731244239742,-500.0,0.00013698,2]
[341828673,1731244239751,-500.0,0.00013698,2]
[341828674,1731244239760,-517.79,0.00013698,2]
[341828675,1731244239774,-517.79,0.00013698,2]
[341828676,1731244239783,-517.79,0.00013698,2]
[341828677,1731244239793,-517.79,0.00013698,2]
[341828678,1731244239802,-517.79,0.00013698,2]
[341828679,1731244239811,-517.79,0.00013698,2]
[341828680,1731244239821,-517.79,0.00013698,2]
[341828681,1731244239830,-517.79,0.00013698,2]
[341828682,1731244239839,-517.79,0.00013698,2]
[341828683,1731244239850,-517.79,0.00013698,2]
[341828684,1731244239860,-517.79,0.00013698,2]
[341828685,1731244239871,-517.79,0.00013698,2]
[341828686,1731244239880,-517.79,0.00013698,2]
[341828687,1731244239889,-517.79,0.00013698,2]
[341828688,1731244239898,-517.79,0.00013698,2]
[341828689,1731244239907,-517.79,0.00013698,2]
[341828690,1731244239916,-517.79,0.00013698,2]
[341828691,1731244239926,-517.79,0.00013698,2]
[341828692,1731244239935,-517.79,0.00013698,2]
[341828693,1731244239945,-517.79,0.00013698,2]
[341828694,1731244239954,-517.79,0.00013698,2]
[341828695,1731244239965,-517.79,0.00013698,2]
[341828696,1731244239974,-517.79,0.00013698,2]
[341828697,1731244239984,-517.79924883,0.00013698,2]
[341828698,1731244239994,-152.96481784,0.00013698,2]
[341828699,1731244240003,-500.0,0.00013698,2]
[341828700,1731244240013,-500.0,0.00013698,2]
[341828701,1731244240024,-500.0,0.00013698,2]
[341828702,1731244240033,-500.0,0.00013698,2]
[341828703,1731244240042,-500.0,0.00013698,2]
[341828704,1731244240052,-500.0,0.00013698,2]
[341828705,1731244240062,-500.0,0.00013698,2]
[341828706,1731244240072,-500.0,0.00013698,2]
[341828707,1731244240081,-500.0,0.00013698,2]
[341828708,1731244240090,-859.65,0.00013698,2]
[341828709,1731244240099,-500.0,0.00013698,2]
[341828710,1731244240109,-859.65,0.00013698,2]
[341828711,1731244240118,-500.0,0.00013698,2]
[341828712,1731244240127,-859.65,0.00013698,2]
[341828713,1731244240137,-500.0,0.00013698,2]
[341828714,1731244240146,-859.65,0.00013698,2]
[341828715,1731244240155,-500.0,0.00013698,2]
[341828716,1731244240164,-859.65,0.00013698,2]
[341828717,1731244240173,-500.0,0.00013698,2]
[341828718,1731244240183,-859.65,0.00013698,2]
[341828720,1731244240192,-500.0,0.00013698,2]
[341828721,1731244240202,-859.65,0.00013698,2]
[341828722,1731244240211,-500.0,0.00013698,2]
[341828723,1731244240221,-859.65,0.00013698,2]
[341828724,1731244240230,-500.0,0.00013698,2]
[341828725,1731244240240,-859.65,0.00013698,2]
[341828727,1731244240249,-500.0,0.00013698,2]
[341828729,1731244240258,-859.65,0.00013698,2]
[341828731,1731244240269,-500.0,0.00013698,2]
[341828732,1731244240279,-859.65,0.00013698,2]
[341828733,1731244240288,-500.0,0.00013698,2]
[341828734,1731244240297,-859.65,0.00013698,2]
[341828736,1731244240306,-193.15494062,0.00013698,2]
[341828737,1731244240315,-859.65,0.00013698,2]
[341828739,1731244240324,-859.65,0.00013698,2]
[341828741,1731244240334,-859.65,0.00013698,2]
[341828743,1731244240343,-859.65,0.00013698,2]
[341828744,1731244240352,-859.65,0.00013698,2]
[341828745,1731244240361,-859.65,0.00013698,2]
[341828746,1731244240370,-859.65,0.00013698,2]
[341828747,1731244240379,-859.65,0.00013698,2]
[341828748,1731244240388,-859.65,0.00013698,2]
[341828749,1731244240398,-859.65,0.00013698,2]
[341828750,1731244240407,-859.65,0.00013698,2]
[341828751,1731244240417,-859.84508399,0.00013698,2]
[341828752,1731244240427,-978.54,0.00013698,2]
[341828753,1731244240436,-978.54,0.00013698,2]
[341828754,1731244240445,-978.54,0.00013698,2]
[341828755,1731244240454,-978.54,0.00013698,2]
[341828756,1731244240464,-978.54,0.00013698,2]
[341828757,1731244240473,-978.54,0.00013698,2]
[341828758,1731244240482,-978.54,0.00013698,2]
[341828759,1731244240491,-500.0,0.00013698,2]
[341828760,1731244240501,-978.54,0.00013698,2]
[341828761,1731244240510,-500.0,0.00013698,2]
[341828762,1731244240521,-978.54,0.00013698,2]
[341828763,1731244240530,-500.0,0.00013698,2]
[341828764,1731244240540,-978.54,0.00013698,2]
[341828765,1731244240549,-534.49084959,0.00013698,2]
[341828766,1731244240558,-978.54,0.00013698,2]
[341828767,1731244240567,-978.54,0.00013698,2]
[341828768,1731244240576,-978.54,0.00013698,2]
[341828769,1731244240586,-978.54,0.00013698,2]
[341828770,1731244240595,-978.54,0.00013698,2]
[341828771,1731244240605,-978.54,0.00013698,2]
[341828772,1731244240614,-978.54,0.00013698,2]
[341828773,1731244240623,-978.54,0.00013698,2]
[341828774,1731244240632,-500.0,0.00013698,2]
[341828775,1731244240642,-978.54,0.00013698,2]
[341828776,1731244240651,-500.0,0.00013698,2]
[341828777,1731244240660,-978.54,0.00013698,2]